[Event "Early-Titled-Tuesday-Blitz-January-30-2024"]
[Site "Chess.com"]
[Date "2024.01.30"]
[Round "3"]
[White "kekic76"]
[Black "HelvertHernandez"]
[Result "1-0"]
[WhiteElo "2344"]
[BlackElo "1867"]
[TimeControl "180+1"]
[EndTime "8:31:16 PST"]
[Termination "kekic76 won by resignation"]

1. e4 {[%clk 0:02:57.7]} 1... c5 {[%clk 0:02:58.3]} 2. Nf3 {[%clk 0:02:54.3]}
2... Nc6 {[%clk 0:02:57.6]} 3. d4 {[%clk 0:02:53.6]} 3... cxd4 {[%clk
0:02:57.6]} 4. Nxd4 {[%clk 0:02:54.5]} 4... Nf6 {[%clk 0:02:57.2]} 5. Nc3 {[%clk
0:02:53.3]} 5... e5 {[%clk 0:02:57]} 6. Ndb5 {[%clk 0:02:53.5]} 6... d6 {[%clk
0:02:56.8]} 7. Bg5 {[%clk 0:02:52.7]} 7... a6 {[%clk 0:02:57]} 8. Na3 {[%clk
0:02:52.9]} 8... b5 {[%clk 0:02:57.2]} 9. Nd5 {[%clk 0:02:52.9]} 9... Be7 {[%clk
0:02:57.5]} 10. Bxf6 {[%clk 0:02:53.5]} 10... Bxf6 {[%clk 0:02:57.4]} 11. c3
{[%clk 0:02:54]} 11... O-O {[%clk 0:02:56.6]} 12. Be2 {[%clk 0:02:53.3]} 12...
Bg5 {[%clk 0:02:56]} 13. Bg4 {[%clk 0:02:51.2]} 13... Ne7 {[%clk 0:02:49.5]} 14.
Bxc8 {[%clk 0:02:45.3]} 14... Rxc8 {[%clk 0:02:47.9]} 15. Nc2 {[%clk 0:02:41.5]}
15... Nxd5 {[%clk 0:02:41.1]} 16. Qxd5 {[%clk 0:02:42.4]} 16... Rc5 {[%clk
0:02:39.4]} 17. Qd3 {[%clk 0:02:40.9]} 17... d5 {[%clk 0:02:37]} 18. Rd1 {[%clk
0:02:36.5]} 18... dxe4 {[%clk 0:02:34.1]} 19. Qxe4 {[%clk 0:02:37.4]} 19... Qe7
{[%clk 0:02:26.2]} 20. O-O {[%clk 0:02:35.6]} 20... f5 {[%clk 0:02:20.8]} 21.
Qd3 {[%clk 0:02:21.5]} 21... e4 {[%clk 0:02:16.9]} 22. Qd6 {[%clk 0:02:18.8]}
22... Qxd6 {[%clk 0:02:12.8]} 23. Rxd6 {[%clk 0:02:19.7]} 23... Rd8 {[%clk
0:02:00.6]} 24. Rfd1 {[%clk 0:02:03.9]} 24... Rcc8 {[%clk 0:01:59.3]} 25. Kf1
{[%clk 0:01:42.9]} 25... Rxd6 {[%clk 0:01:57.6]} 26. Rxd6 {[%clk 0:01:41.9]}
26... Rd8 {[%clk 0:01:57.8]} 27. Rxd8+ {[%clk 0:01:30.8]} 27... Bxd8 {[%clk
0:01:56.5]} 28. Ke2 {[%clk 0:01:26.9]} 28... Bb6 {[%clk 0:01:54.5]} 29. Nb4
{[%clk 0:01:24.9]} 29... a5 {[%clk 0:01:50.2]} 30. Nd5 {[%clk 0:01:24.2]} 30...
Bd8 {[%clk 0:01:46.4]} 31. b3 {[%clk 0:01:23.9]} 31... Kf7 {[%clk 0:01:45.8]}
32. Ne3 {[%clk 0:01:06.6]} 32... Ke6 {[%clk 0:01:44.9]} 33. c4 {[%clk
0:01:06.7]} 33... bxc4 {[%clk 0:01:40.1]} 34. Nxc4 {[%clk 0:01:06.5]} 34... Bc7
{[%clk 0:01:39.1]} 35. h3 {[%clk 0:01:05.1]} 35... g5 {[%clk 0:01:37]} 36. a3
{[%clk 0:00:57.9]} 36... f4 {[%clk 0:01:36.2]} 37. f3 {[%clk 0:00:57.2]} 37...
e3 {[%clk 0:01:28.7]} 38. Kd3 {[%clk 0:00:53.3]} 38... Kd5 {[%clk 0:01:27.9]}
39. Nb2 {[%clk 0:00:50.8]} 39... Bd6 {[%clk 0:01:25.8]} 40. Nc4 {[%clk
0:00:35.9]} 40... Bc7 {[%clk 0:01:22.6]} 41. a4 {[%clk 0:00:27.3]} 41... Kc5
{[%clk 0:01:18.4]} 42. Kc2 {[%clk 0:00:18.9]} 42... Kb4 {[%clk 0:01:15.2]} 43.
Nb2 {[%clk 0:00:19.2]} 43... Bd6 {[%clk 0:01:04.2]} 44. Nd3+ {[%clk 0:00:17.7]}
44... Ka3 {[%clk 0:01:04.2]} 45. Nc1 {[%clk 0:00:17.9]} 45... e2 {[%clk
0:00:58.9]} 46. Nxe2 {[%clk 0:00:17.3]} 46... Bc5 {[%clk 0:00:55.4]} 47. Nc3
{[%clk 0:00:15.5]} 47... Be3 {[%clk 0:00:54.7]} 48. Ne4 {[%clk 0:00:13.4]} 48...
Kb4 {[%clk 0:00:54.3]} 49. Nxg5 {[%clk 0:00:13.4]} 49... h5 {[%clk 0:00:52.4]}
50. Ne4 {[%clk 0:00:11.3]} 50... h4 {[%clk 0:00:51.1]} 51. Ng5 {[%clk
0:00:09.6]} 51... Kc5 {[%clk 0:00:50]} 52. Ne4+ {[%clk 0:00:08.2]} 52... Kb4
{[%clk 0:00:48.9]} 53. Nd6 {[%clk 0:00:07.1]} 53... Bc5 {[%clk 0:00:47.6]} 54.
Nc4 {[%clk 0:00:08]} 54... Bf2 {[%clk 0:00:46.8]} 55. Nb2 {[%clk 0:00:08]} 55...
Bg3 {[%clk 0:00:46]} 56. Nd3+ {[%clk 0:00:08.2]} 56... Ka3 {[%clk 0:00:45.6]}
57. Kc3 {[%clk 0:00:08.8]} 57... Ka2 {[%clk 0:00:45.6]} 58. b4 {[%clk
0:00:08.4]} 58... axb4+ {[%clk 0:00:45.5]} 59. Kxb4 {[%clk 0:00:09.3]} 59... Bh2
{[%clk 0:00:43.1]} 60. a5 {[%clk 0:00:09.6]} 60... Bg1 {[%clk 0:00:43.4]} 61.
Nc5 {[%clk 0:00:09.7]} 61... Kb2 {[%clk 0:00:43.4]} 62. a6 {[%clk 0:00:10.1]}
62... Kc2 {[%clk 0:00:42.1]} 63. a7 {[%clk 0:00:10.4]} 63... Bxc5+ {[%clk
0:00:42.8]} 64. Kxc5 {[%clk 0:00:09.5]} 64... Kd3 {[%clk 0:00:42.9]} 65. a8=Q
{[%clk 0:00:10]} 65... Ke3 {[%clk 0:00:43.5]} 66. Qe4+ {[%clk 0:00:09.4]} 66...
Kf2 {[%clk 0:00:43.5]} 67. Qxf4 {[%clk 0:00:10.3]} 67... Kxg2 {[%clk 0:00:43.5]}
68. Qg4+ {[%clk 0:00:10.3]} 68... Kf2 {[%clk 0:00:42.4]} 69. f4 {[%clk
0:00:10.5]} 1-0

[Event "Early-Titled-Tuesday-Blitz-January-30-2024"]
[Site "Chess.com"]
[Date "2024.01.30"]
[Round "3"]
[White "Zurability"]
[Black "GHANDEEVAM2003"]
[Result "1-0"]
[WhiteElo "2783"]
[BlackElo "3054"]
[TimeControl "180+1"]
[EndTime "8:31:17 PST"]
[Termination "Zurability won by resignation"]

1. Nf3 {[%clk 0:03:00.9]} 1... d6 {[%clk 0:02:58.2]} 2. d4 {[%clk 0:02:59.8]}
2... g6 {[%clk 0:02:57]} 3. e4 {[%clk 0:02:54.2]} 3... Bg7 {[%clk 0:02:54.9]} 4.
Nc3 {[%clk 0:02:49.1]} 4... Nc6 {[%clk 0:02:54]} 5. Be3 {[%clk 0:02:44.7]} 5...
Bg4 {[%clk 0:02:52.2]} 6. d5 {[%clk 0:02:38.9]} 6... Ne5 {[%clk 0:02:48.8]} 7.
Bb5+ {[%clk 0:02:28.5]} 7... c6 {[%clk 0:02:36.5]} 8. Nxe5 {[%clk 0:01:47.8]}
8... Bxd1 {[%clk 0:02:34.4]} 9. dxc6 {[%clk 0:01:47.9]} 9... bxc6 {[%clk
0:02:25.8]} 10. Bxc6+ {[%clk 0:01:45.1]} 10... Kf8 {[%clk 0:02:23.1]} 11. Nd7+
{[%clk 0:01:36.8]} 11... Qxd7 {[%clk 0:02:13.4]} 12. Bxd7 {[%clk 0:01:36.7]}
12... Bxc3+ {[%clk 0:02:05.2]} 13. bxc3 {[%clk 0:01:21]} 13... Bxc2 {[%clk
0:02:04.6]} 14. f3 {[%clk 0:01:18.6]} 14... Nf6 {[%clk 0:02:01]} 15. Bc6 {[%clk
0:01:08.9]} 15... Rc8 {[%clk 0:02:00]} 16. Bb5 {[%clk 0:01:09.5]} 16... Rb8
{[%clk 0:01:46.1]} 17. a4 {[%clk 0:01:04.1]} 17... Kg7 {[%clk 0:01:34.8]} 18.
Bxa7 {[%clk 0:00:51.1]} 18... Ra8 {[%clk 0:01:32.4]} 19. Be3 {[%clk 0:00:43.2]}
19... Rhc8 {[%clk 0:01:33]} 20. Kd2 {[%clk 0:00:43.2]} 20... Bb3 {[%clk
0:01:33.5]} 21. Rhb1 {[%clk 0:00:41.5]} 21... Bc4 {[%clk 0:01:31.8]} 22. a5
{[%clk 0:00:37]} 22... Bxb5 {[%clk 0:01:28.5]} 23. Rxb5 {[%clk 0:00:37.9]} 23...
Nd7 {[%clk 0:01:28.8]} 24. a6 {[%clk 0:00:35.3]} 24... Kf8 {[%clk 0:01:26]} 25.
a7 {[%clk 0:00:32.4]} 25... Ne5 {[%clk 0:01:26.2]} 26. Bd4 {[%clk 0:00:22.4]}
26... Nc4+ {[%clk 0:01:24.7]} 27. Ke2 {[%clk 0:00:21.6]} 27... Ke8 {[%clk
0:01:25.1]} 28. Rb7 {[%clk 0:00:20.9]} 28... e5 {[%clk 0:01:22.4]} 29. Bf2
{[%clk 0:00:20.2]} 29... d5 {[%clk 0:01:22.3]} 30. exd5 {[%clk 0:00:19.2]} 30...
Nd6 {[%clk 0:01:22.8]} 31. Rb3 {[%clk 0:00:17.4]} 31... Kd7 {[%clk 0:01:20.7]}
32. Rab1 {[%clk 0:00:17.2]} 32... Kc7 {[%clk 0:01:09.5]} 33. Rb6 {[%clk
0:00:12.4]} 33... f5 {[%clk 0:01:03.9]} 34. Rc6+ {[%clk 0:00:10.9]} 34... Kd7
{[%clk 0:01:04.3]} 35. Rbb6 {[%clk 0:00:06.8]} 35... Rxc6 {[%clk 0:01:03.5]} 36.
Rxc6 {[%clk 0:00:03.9]} 36... Nc8 {[%clk 0:01:00.1]} 37. Ra6 {[%clk 0:00:03.9]}
37... Kc7 {[%clk 0:00:59.8]} 38. c4 {[%clk 0:00:03.8]} 38... Kb7 {[%clk
0:00:57.8]} 39. Ra2 {[%clk 0:00:03.4]} 39... Kc7 {[%clk 0:00:57.6]} 40. Be3
{[%clk 0:00:01.6]} 40... Kd7 {[%clk 0:00:56.4]} 41. Kd3 {[%clk 0:00:01.9]} 41...
Kc7 {[%clk 0:00:56]} 42. Bf2 {[%clk 0:00:02.5]} 42... h5 {[%clk 0:00:55.2]} 43.
g3 {[%clk 0:00:02.3]} 43... Kd6 {[%clk 0:00:54.3]} 44. Ra6+ {[%clk 0:00:01.1]}
44... Ke7 {[%clk 0:00:54.1]} 45. Rc6 {[%clk 0:00:01.6]} 45... e4+ {[%clk
0:00:54.1]} 46. fxe4 {[%clk 0:00:01.7]} 46... fxe4+ {[%clk 0:00:53.7]} 47. Kxe4
{[%clk 0:00:02.6]} 47... Nd6+ {[%clk 0:00:53.9]} 48. Ke5 {[%clk 0:00:02.6]}
48... Nf7+ {[%clk 0:00:53.4]} 49. Kd4 {[%clk 0:00:03.2]} 49... Kd7 {[%clk
0:00:53.5]} 50. Rf6 {[%clk 0:00:03.3]} 50... Ke7 {[%clk 0:00:52]} 51. Re6+
{[%clk 0:00:03]} 51... Kd7 {[%clk 0:00:52.2]} 52. Kc3 {[%clk 0:00:03.9]} 52...
Ng5 {[%clk 0:00:51.3]} 53. Rxg6 {[%clk 0:00:03.7]} 53... Ne4+ {[%clk 0:00:51.3]}
54. Kd4 {[%clk 0:00:04.5]} 54... Nxf2 {[%clk 0:00:51.5]} 55. c5 {[%clk
0:00:05.2]} 55... Ke7 {[%clk 0:00:47.7]} 56. Rg7+ {[%clk 0:00:05.6]} 56... Kf6
{[%clk 0:00:47.3]} 57. Rb7 {[%clk 0:00:06.3]} 57... Ng4 {[%clk 0:00:46.4]} 58.
c6 {[%clk 0:00:05.9]} 58... Nh6 {[%clk 0:00:46.4]} 59. c7 {[%clk 0:00:05.8]}
59... Nf5+ {[%clk 0:00:45.8]} 60. Kc5 {[%clk 0:00:06.2]} 60... Ne7 {[%clk
0:00:44.3]} 61. d6 {[%clk 0:00:06.6]} 61... Nc8 {[%clk 0:00:40]} 62. d7 {[%clk
0:00:06.9]} 1-0

[Event "Early-Titled-Tuesday-Blitz-January-30-2024"]
[Site "Chess.com"]
[Date "2024.01.30"]
[Round "3"]
[White "RobertJFischer71"]
[Black "GrotBchess"]
[Result "0-1"]
[WhiteElo "2549"]
[BlackElo "2301"]
[TimeControl "180+1"]
[EndTime "8:31:20 PST"]
[Termination "GrotBchess won by resignation"]

1. e4 {[%clk 0:03:00.9]} 1... c5 {[%clk 0:02:58.2]} 2. Nf3 {[%clk 0:03:00.9]}
2... e6 {[%clk 0:02:58.2]} 3. d4 {[%clk 0:03:01.2]} 3... cxd4 {[%clk 0:02:59.1]}
4. Nxd4 {[%clk 0:03:02]} 4... Nc6 {[%clk 0:02:59.5]} 5. Nc3 {[%clk 0:03:02.7]}
5... Qc7 {[%clk 0:02:59.9]} 6. g3 {[%clk 0:03:02.9]} 6... a6 {[%clk 0:02:57.9]}
7. Bg2 {[%clk 0:03:03.4]} 7... Nf6 {[%clk 0:02:58]} 8. Qe2 {[%clk 0:03:03.7]}
8... Nxd4 {[%clk 0:02:57.9]} 9. Qd1 {[%clk 0:03:03.7]} 9... Nc6 {[%clk
0:02:57.2]} 10. O-O {[%clk 0:03:03.9]} 10... Be7 {[%clk 0:02:56.6]} 11. f4
{[%clk 0:03:03.9]} 11... d6 {[%clk 0:02:56.4]} 12. g4 {[%clk 0:03:03.6]} 12...
h6 {[%clk 0:02:49.1]} 13. Be3 {[%clk 0:03:01.3]} 13... b5 {[%clk 0:02:43.1]} 14.
a3 {[%clk 0:02:57.6]} 14... Bb7 {[%clk 0:02:42]} 15. g5 {[%clk 0:02:55.1]} 15...
hxg5 {[%clk 0:02:41.2]} 16. fxg5 {[%clk 0:02:56]} 16... Nd7 {[%clk 0:02:41.4]}
17. g6 {[%clk 0:02:53.1]} 17... fxg6 {[%clk 0:02:35.9]} 18. Qg4 {[%clk
0:02:53.1]} 18... Nce5 {[%clk 0:02:25.9]} 19. Qxe6 {[%clk 0:02:50.4]} 19... Qc4
{[%clk 0:02:25.7]} 20. Nd5 {[%clk 0:02:41.3]} 20... Bxd5 {[%clk 0:02:25]} 21.
exd5 {[%clk 0:02:42.2]} 21... Qg4 {[%clk 0:02:23.3]} 22. Rae1 {[%clk 0:02:16.7]}
22... Rc8 {[%clk 0:02:07.2]} 23. c3 {[%clk 0:02:01.5]} 23... Qxe6 {[%clk
0:01:48.3]} 24. dxe6 {[%clk 0:02:02.4]} 24... Nc5 {[%clk 0:01:46.9]} 25. Bd5
{[%clk 0:02:03.1]} 25... Rh3 {[%clk 0:01:24]} 26. Bd4 {[%clk 0:01:59.1]} 26...
Ncd3 {[%clk 0:01:16]} 27. Re2 {[%clk 0:01:57]} 27... Bf6 {[%clk 0:01:06.7]} 28.
Kg2 {[%clk 0:01:24]} 28... Rh4 {[%clk 0:00:57.1]} 29. Kg3 {[%clk 0:01:12.9]}
29... Rg4+ {[%clk 0:00:51.5]} 30. Kh3 {[%clk 0:01:11.5]} 30... Nf4+ {[%clk
0:00:43.4]} 31. Rxf4 {[%clk 0:01:05]} 31... Rxf4 {[%clk 0:00:44.3]} 32. Bb7
{[%clk 0:00:57.6]} 32... Rb8 {[%clk 0:00:38]} 33. Bxa6 {[%clk 0:00:57.5]} 33...
Ke7 {[%clk 0:00:38.1]} 34. b3 {[%clk 0:00:49.6]} 34... Rh8+ {[%clk 0:00:35.6]}
35. Kg2 {[%clk 0:00:48.5]} 35... Ng4 {[%clk 0:00:23.8]} 36. Bxf6+ {[%clk
0:00:37.1]} 36... gxf6 {[%clk 0:00:22.7]} 37. h3 {[%clk 0:00:37]} 37... Ne5
{[%clk 0:00:19.7]} 38. Bxb5 {[%clk 0:00:36.7]} 38... Rb8 {[%clk 0:00:15.1]} 39.
c4 {[%clk 0:00:34.7]} 39... Kxe6 {[%clk 0:00:14.8]} 40. a4 {[%clk 0:00:30.6]}
40... Rd4 {[%clk 0:00:14.9]} 41. a5 {[%clk 0:00:30.6]} 41... Rd3 {[%clk
0:00:15]} 42. Rb2 {[%clk 0:00:30.4]} 42... Ra8 {[%clk 0:00:12.5]} 43. a6 {[%clk
0:00:30.6]} 43... Rd4 {[%clk 0:00:11.1]} 44. Ra2 {[%clk 0:00:29.2]} 44... d5
{[%clk 0:00:10.7]} 45. a7 {[%clk 0:00:28.3]} 45... dxc4 {[%clk 0:00:10.1]} 46.
Ra6+ {[%clk 0:00:25.7]} 46... Rd6 {[%clk 0:00:09.7]} 47. Ra3 {[%clk 0:00:20.4]}
47... c3 {[%clk 0:00:08.1]} 48. b4 {[%clk 0:00:20.5]} 48... c2 {[%clk
0:00:07.9]} 49. Rc3 {[%clk 0:00:20.9]} 49... Rxa7 {[%clk 0:00:07.9]} 50. Rxc2
{[%clk 0:00:21.5]} 50... Rb7 {[%clk 0:00:08.5]} 51. Rc5 {[%clk 0:00:20.7]} 51...
Rdb6 {[%clk 0:00:06.4]} 52. Be2 {[%clk 0:00:10.6]} 52... Rxb4 {[%clk 0:00:06.4]}
53. Rc8 {[%clk 0:00:11.2]} 53... Rb2 {[%clk 0:00:06]} 54. Kf2 {[%clk 0:00:10.9]}
54... R7b4 {[%clk 0:00:06.6]} 55. Rc3 {[%clk 0:00:09.1]} 55... Rf4+ {[%clk
0:00:05.9]} 56. Ke1 {[%clk 0:00:09.7]} 56... Re4 {[%clk 0:00:06.2]} 0-1

[Event "Early-Titled-Tuesday-Blitz-January-30-2024"]
[Site "Chess.com"]
[Date "2024.01.30"]
[Round "3"]
[White "NewYearGirl"]
[Black "AsterPhoenix"]
[Result "0-1"]
[WhiteElo "2369"]
[BlackElo "2588"]
[TimeControl "180+1"]
[EndTime "8:31:22 PST"]
[Termination "AsterPhoenix won by resignation"]

1. e4 {[%clk 0:03:00.9]} 1... c5 {[%clk 0:02:58.9]} 2. Nf3 {[%clk 0:03:01.5]}
2... e6 {[%clk 0:02:59]} 3. d4 {[%clk 0:03:02]} 3... cxd4 {[%clk 0:02:59.9]} 4.
Nxd4 {[%clk 0:03:02.9]} 4... Nf6 {[%clk 0:03:00.1]} 5. Nc3 {[%clk 0:03:02.8]}
5... Bb4 {[%clk 0:03:00.6]} 6. e5 {[%clk 0:02:58.1]} 6... Nd5 {[%clk 0:03:00.8]}
7. Qg4 {[%clk 0:02:57.4]} 7... Kf8 {[%clk 0:02:59.1]} 8. Bd2 {[%clk 0:02:54.1]}
8... h5 {[%clk 0:02:48]} 9. Qf3 {[%clk 0:02:48.2]} 9... Qa5 {[%clk 0:02:40.2]}
10. Be2 {[%clk 0:02:37.1]} 10... Nxc3 {[%clk 0:02:25]} 11. bxc3 {[%clk
0:02:36.4]} 11... Be7 {[%clk 0:02:23]} 12. O-O {[%clk 0:02:27.8]} 12... Qxe5
{[%clk 0:02:20.4]} 13. Bf4 {[%clk 0:02:28.5]} 13... Qf6 {[%clk 0:02:12.8]} 14.
Nb5 {[%clk 0:02:21.6]} 14... Na6 {[%clk 0:02:11.3]} 15. Rfe1 {[%clk 0:02:15.9]}
15... g5 {[%clk 0:02:07.7]} 16. Be3 {[%clk 0:02:10]} 16... Qxf3 {[%clk
0:02:05.7]} 17. Bxf3 {[%clk 0:02:10.9]} 17... d5 {[%clk 0:02:02]} 18. Bd4 {[%clk
0:02:08.5]} 18... f6 {[%clk 0:01:54.2]} 19. g4 {[%clk 0:02:01.2]} 19... hxg4
{[%clk 0:01:44.8]} 20. Bxg4 {[%clk 0:02:02.1]} 20... e5 {[%clk 0:01:44.2]} 21.
Bxc8 {[%clk 0:02:02.1]} 21... Rxc8 {[%clk 0:01:44.8]} 22. Bxa7 {[%clk
0:02:02.3]} 22... Kf7 {[%clk 0:01:23.7]} 23. Rad1 {[%clk 0:02:01.4]} 23... Rhd8
{[%clk 0:01:19.6]} 24. Bb6 {[%clk 0:01:57.2]} 24... Rd7 {[%clk 0:01:19.9]} 25.
a4 {[%clk 0:01:49.4]} 25... Nc5 {[%clk 0:01:20.2]} 26. a5 {[%clk 0:01:49.7]}
26... Na4 {[%clk 0:01:20.6]} 27. Re3 {[%clk 0:01:37.5]} 27... Nxb6 {[%clk
0:01:16.7]} 28. axb6 {[%clk 0:01:38.4]} 28... Bc5 {[%clk 0:01:15]} 29. Red3
{[%clk 0:01:33.9]} 29... Ke6 {[%clk 0:01:15.3]} 30. Nc7+ {[%clk 0:01:33.2]}
30... Kf5 {[%clk 0:01:04.7]} 31. Nxd5 {[%clk 0:01:31.7]} 31... Rh7 {[%clk
0:00:53.8]} 32. c4 {[%clk 0:01:25.4]} 32... e4 {[%clk 0:00:51.6]} 33. Rg3 {[%clk
0:01:19.3]} 33... Bd6 {[%clk 0:00:44.4]} 34. Ne3+ {[%clk 0:01:01.4]} 34... Ke6
{[%clk 0:00:44.3]} 35. Rg4 {[%clk 0:00:57]} 35... Bxh2+ {[%clk 0:00:41.2]} 36.
Kf1 {[%clk 0:00:57.5]} 36... Bf4 {[%clk 0:00:41.4]} 37. Ke2 {[%clk 0:00:45.1]}
37... Rh2 {[%clk 0:00:34.7]} 38. Ng2 {[%clk 0:00:36]} 38... Kf5 {[%clk
0:00:34.9]} 39. Nxf4 {[%clk 0:00:29.9]} 39... Kxg4 {[%clk 0:00:29.3]} 40. Nd5
{[%clk 0:00:30.3]} 40... Rc6 {[%clk 0:00:17.2]} 41. Rd4 {[%clk 0:00:29.4]} 41...
f5 {[%clk 0:00:16.1]} 42. Ne3+ {[%clk 0:00:28.1]} 42... Kf4 {[%clk 0:00:14.7]}
43. Rd5 {[%clk 0:00:27.9]} 43... Rf6 {[%clk 0:00:15.1]} 44. c5 {[%clk
0:00:27.8]} 44... g4 {[%clk 0:00:15.2]} 45. Nf1 {[%clk 0:00:26.9]} 45... Rh8
{[%clk 0:00:13.1]} 46. c4 {[%clk 0:00:25]} 46... Rc8 {[%clk 0:00:10.4]} 47. Ne3
{[%clk 0:00:25.2]} 47... Rff8 {[%clk 0:00:06.4]} 48. Rd7 {[%clk 0:00:24.7]}
48... g3 {[%clk 0:00:06.8]} 49. fxg3+ {[%clk 0:00:24.5]} 49... Kxg3 {[%clk
0:00:07.7]} 50. Rxb7 {[%clk 0:00:23.5]} 50... f4 {[%clk 0:00:07.4]} 51. Rg7+
{[%clk 0:00:23.4]} 51... Kh4 {[%clk 0:00:07.2]} 52. Ng2+ {[%clk 0:00:22.6]}
52... Kh5 {[%clk 0:00:07]} 53. Kf2 {[%clk 0:00:20.4]} 53... Rxc5 {[%clk
0:00:03.7]} 54. b7 {[%clk 0:00:20.4]} 54... Rxc4 {[%clk 0:00:04.2]} 55. Nxf4+
{[%clk 0:00:19.6]} 55... Rxf4+ {[%clk 0:00:04]} 56. Ke3 {[%clk 0:00:20]} 56...
Rf8 {[%clk 0:00:04.9]} 57. Re7 {[%clk 0:00:17.2]} 57... Rb4 {[%clk 0:00:05.1]}
58. Rh7+ {[%clk 0:00:15.5]} 58... Kg6 {[%clk 0:00:05.1]} 59. Rc7 {[%clk
0:00:16.4]} 59... Rb8 {[%clk 0:00:05.2]} 0-1

[Event "Early-Titled-Tuesday-Blitz-January-30-2024"]
[Site "Chess.com"]
[Date "2024.01.30"]
[Round "3"]
[White "Mikayel99"]
[Black "mary-sanna"]
[Result "0-1"]
[WhiteElo "2541"]
[BlackElo "2204"]
[TimeControl "180+1"]
[EndTime "8:31:24 PST"]
[Termination "mary-sanna won on time"]

1. d4 {[%clk 0:03:00.9]} 1... d5 {[%clk 0:02:59.6]} 2. e3 {[%clk 0:03:01.2]}
2... Nf6 {[%clk 0:02:59.4]} 3. Bd3 {[%clk 0:03:01.5]} 3... c5 {[%clk 0:02:58.8]}
4. b3 {[%clk 0:03:01.4]} 4... Nc6 {[%clk 0:02:56]} 5. Bb2 {[%clk 0:03:01.5]}
5... Bg4 {[%clk 0:02:41.4]} 6. Ne2 {[%clk 0:02:58.5]} 6... e6 {[%clk 0:02:40.2]}
7. h3 {[%clk 0:02:55.9]} 7... Bh5 {[%clk 0:02:40.2]} 8. Nd2 {[%clk 0:02:55]}
8... cxd4 {[%clk 0:02:35.9]} 9. exd4 {[%clk 0:02:54.5]} 9... Bd6 {[%clk
0:02:24.8]} 10. a3 {[%clk 0:02:53.4]} 10... O-O {[%clk 0:02:21.6]} 11. O-O
{[%clk 0:02:53.7]} 11... Rc8 {[%clk 0:02:20.1]} 12. c4 {[%clk 0:02:52.1]} 12...
Bb8 {[%clk 0:02:16]} 13. g4 {[%clk 0:02:34.7]} 13... Qc7 {[%clk 0:01:35]} 14.
Ng3 {[%clk 0:02:32.2]} 14... Bg6 {[%clk 0:01:30.2]} 15. Be2 {[%clk 0:02:30.2]}
15... Ne4 {[%clk 0:01:22.8]} 16. Ndxe4 {[%clk 0:02:29.1]} 16... Bxe4 {[%clk
0:01:22.5]} 17. c5 {[%clk 0:02:18.6]} 17... h5 {[%clk 0:01:01.1]} 18. f4 {[%clk
0:02:12.1]} 18... hxg4 {[%clk 0:00:44.2]} 19. hxg4 {[%clk 0:02:13]} 19... Bg6
{[%clk 0:00:26.3]} 20. Rc1 {[%clk 0:02:05.6]} 20... Qe7 {[%clk 0:00:20.2]} 21.
Kg2 {[%clk 0:02:02.8]} 21... f6 {[%clk 0:00:17.2]} 22. Bd3 {[%clk 0:01:59.8]}
22... Bxd3 {[%clk 0:00:15.4]} 23. Qxd3 {[%clk 0:02:00.7]} 23... Kf7 {[%clk
0:00:15.7]} 24. Rce1 {[%clk 0:01:59.9]} 24... Rh8 {[%clk 0:00:15.3]} 25. Rh1
{[%clk 0:01:42.3]} 25... Bxf4 {[%clk 0:00:12.3]} 26. Nf5 {[%clk 0:01:33.6]}
26... Qc7 {[%clk 0:00:07.2]} 27. Nh4 {[%clk 0:01:28.9]} 27... Rh6 {[%clk
0:00:07]} 28. Bc1 {[%clk 0:01:16.5]} 28... Rch8 {[%clk 0:00:04.8]} 29. Nf3
{[%clk 0:00:13.9]} 29... Rxh1 {[%clk 0:00:04.7]} 30. Rxh1 {[%clk 0:00:13.6]}
30... Rxh1 {[%clk 0:00:05.2]} 31. Kxh1 {[%clk 0:00:14.3]} 31... Bxc1 {[%clk
0:00:05.1]} 32. Qd1 {[%clk 0:00:14.7]} 32... Bf4 {[%clk 0:00:05.2]} 33. Qe2
{[%clk 0:00:14]} 33... Bh6 {[%clk 0:00:05]} 34. b4 {[%clk 0:00:12.8]} 34... Qf4
{[%clk 0:00:04.6]} 35. b5 {[%clk 0:00:13.3]} 35... Qc1+ {[%clk 0:00:04.4]} 36.
Kg2 {[%clk 0:00:13]} 36... Nd8 {[%clk 0:00:03.1]} 37. Qf2 {[%clk 0:00:12.8]}
37... Qf4 {[%clk 0:00:02.4]} 38. Qh4 {[%clk 0:00:09]} 38... Bg5 {[%clk
0:00:01.9]} 39. Qh5+ {[%clk 0:00:09.1]} 39... Ke7 {[%clk 0:00:02.2]} 40. Qg6
{[%clk 0:00:03.7]} 40... Qxg4+ {[%clk 0:00:02.1]} 41. Kf1 {[%clk 0:00:04]} 41...
Qxf3+ {[%clk 0:00:01.8]} 42. Ke1 {[%clk 0:00:04.7]} 42... Qg3+ {[%clk
0:00:01.4]} 43. Ke2 {[%clk 0:00:04.9]} 43... Qf4 {[%clk 0:00:01.5]} 44. Qxg7+
{[%clk 0:00:05.1]} 44... Nf7 {[%clk 0:00:01.9]} 45. Qg8 {[%clk 0:00:05.9]} 45...
Qe3+ {[%clk 0:00:02.3]} 46. Kf1 {[%clk 0:00:06.5]} 46... Bh4 {[%clk 0:00:02.1]}
47. Kg2 {[%clk 0:00:04.4]} 47... Qf2+ {[%clk 0:00:02]} 48. Kh3 {[%clk
0:00:05.1]} 48... Qg3+ {[%clk 0:00:02.4]} 49. Qxg3 {[%clk 0:00:05.5]} 49... Bxg3
{[%clk 0:00:03.3]} 50. Kxg3 {[%clk 0:00:06.4]} 50... e5 {[%clk 0:00:03.8]} 51.
a4 {[%clk 0:00:03]} 51... exd4 {[%clk 0:00:03.9]} 52. a5 {[%clk 0:00:03.7]}
52... Kd7 {[%clk 0:00:04.2]} 53. Kf3 {[%clk 0:00:01.2]} 53... Ne5+ {[%clk
0:00:04]} 54. Kf4 {[%clk 0:00:01.9]} 54... d3 {[%clk 0:00:04.1]} 55. Ke3 {[%clk
0:00:02.3]} 55... f5 {[%clk 0:00:04.2]} 56. Kd2 {[%clk 0:00:01.5]} 56... Kc7
{[%clk 0:00:04]} 57. Kc3 {[%clk 0:00:01.6]} 57... f4 {[%clk 0:00:04.3]} 0-1